fUST/lending_fUST_20240104
["ID","MTS","AMOUNT","RATE_DAILY","PERIOD"]
[310128111,1704377440742,-199.2338,0.00032279,2]
[310128112,1704377440752,-199.2338,0.00032279,2]
[310128113,1704377440761,-11213.51096633,0.00032279,2]
[310128114,1704377440771,-311.2719896,0.00032329,2]
[310128115,1704377440781,-943.39187807,0.0003234,2]
[310128116,1704377440791,-1660.10396659,0.00032365,2]
[310128117,1704377440801,-155.18285666,0.00032728,4]
[310128118,1704377440811,-231.10405101,0.0003273,2]
[310128119,1704377440821,-485.85546381,0.00032876,7]
[310128120,1704377440830,-240.82848987,0.00032876,7]
[310128121,1704377440840,-490.24625171,0.00032876,7]
[310128122,1704377440850,-444.00025524,0.00032876,7]
[310128123,1704377440860,-231.29762022,0.00032876,7]
[310128124,1704377440871,-500.0,0.00032876,7]
[310128125,1704377440881,-225.20207032,0.00032876,7]
[310128126,1704377440891,-455.38357148,0.00032876,7]
[310128127,1704377440901,-167.83,0.00032877,2]
[310128128,1704377440911,-167.83,0.00032877,2]
[310128129,1704377440922,-167.83,0.00032877,2]
[310128130,1704377440931,-167.83,0.00032877,2]
[310128131,1704377440940,-167.83,0.00032877,2]
[310128132,1704377440951,-167.83,0.00032877,2]
[310128133,1704377440961,-167.83,0.00032877,2]
[310128134,1704377440971,-167.83,0.00032877,2]
[310128135,1704377440980,-167.83,0.00032877,2]
[310128136,1704377441074,-167.83,0.00032877,2]
[310128137,1704377441084,-167.83,0.00032877,2]
[310128138,1704377441093,-167.83,0.00032877,2]
[310128139,1704377441103,-167.83,0.00032877,2]
[310128140,1704377441113,-167.83,0.00032877,2]
[310128141,1704377441123,-167.83,0.00032877,2]
[310128142,1704377441133,-167.83,0.00032877,2]
[310128143,1704377441143,-167.83,0.00032877,2]
[310128144,1704377441153,-167.83,0.00032877,2]
[310128145,1704377441163,-167.83,0.00032877,2]
[310128146,1704377441173,-187.7362751,0.00032877,2]
[310128147,1704377441184,-155.0,0.00032877,2]
[310128148,1704377441194,-1000.0,0.00033,33]
[310128149,1704377441207,-545.80261496,0.00033,2]
[310128150,1704377441216,-10000.0,0.00033,2]
[310128151,1704377441226,-221.0,0.00033,2]
[310128152,1704377441237,-221.0,0.00033,2]
[310128153,1704377441246,-300.0,0.000335,17]
[310128154,1704377441256,-150.81901718,0.00033566,2]
[310128155,1704377441265,-250.19065122,0.00033566,2]
[310128156,1704377441274,-620.0000064,0.0003361,2]
[310128157,1704377441284,-155.47684924,0.00033998,4]
[310128158,1704377441293,-154.8915759,0.00033998,4]
[310128160,1704377441303,-1000.0,0.00034,7]
[310128161,1704377441313,-1748.52,0.00034,4]
[310128162,1704377441322,-1000.0,0.00034,34]
[310128163,1704377441331,-17229.2862618,0.00034,2]
[310128164,1704377441341,-151.0,0.00034,2]
[310128165,1704377441350,-500.0,0.00034,7]
[310128166,1704377441359,-199.2338,0.00034,2]
[310128167,1704377441369,-199.2338,0.00034,2]
[310128168,1704377441379,-301.63803436,0.0003413,4]
[310128169,1704377441388,-155.0,0.00034247,2]
[310128170,1704377441397,-160.587746,0.00034281,2]
[310128171,1704377441407,-6315.71861514,0.000345,2]
[310128172,1704377441416,-4000.0,0.00034521,2]
[310128173,1704377441426,-603.27606872,0.00034704,7]
[310128174,1704377441435,-3519.18377026,0.000349,2]
[310128175,1704377441444,-635.63729434,0.00035,2]
[310128176,1704377441453,-2758.84417873,0.00035,2]
[310128177,1704377441463,-155.37813505,0.00035,4]
[310128178,1704377441473,-4177.42015254,0.00035,4]
[310128179,1704377441484,-156.11871234,0.00035,2]
[310128180,1704377441494,-155.36339808,0.00035,6]
[310128181,1704377441504,-1454.89912219,0.00035,14]
[310128182,1704377441514,-1000.0,0.00035,35]
[310128183,1704377441523,-249.34656463,0.00035,2]
[310128184,1704377441533,-332.07950254,0.00035,4]
[310128185,1704377441543,-11137.13456976,0.00035,4]
[310128186,1704377441553,-500.57383452,0.00035,7]
[310128187,1704377441563,-544.575995,0.00035,18]
[310128188,1704377441573,-500.0,0.00035,7]
[310128189,1704377441582,-170.0,0.00035,2]
[310128190,1704377441594,-166.79376748,0.00035287,4]
[310128191,1704377441603,-200.0,0.00035401,15]
[310128192,1704377441613,-200.0,0.00035401,15]
[310128193,1704377441623,-200.0,0.00035401,15]
[310128194,1704377441633,-205.0,0.00035401,15]
[310128195,1704377441642,-1033.0,0.00035452,2]
[310128196,1704377441652,-46992.09509703,0.000355,14]
[310128197,1704377441662,-151.0,0.000355,2]
[310128198,1704377441671,-199.2338,0.000355,2]
[310128199,1704377441681,-199.233804,0.000355,2]
[310128200,1704377441690,-1206.55213744,0.00035583,30]
[310128201,1704377441700,-2148.79520162,0.00035616,2]
[310128202,1704377441710,-1937.3,0.00035616,120]
[310128203,1704377441720,-876.075417,0.00035616,120]
[310128204,1704377441730,-155.0,0.00035617,2]
[310128205,1704377441739,-4000.0,0.00035798,2]
[310128206,1704377441748,-232.59961994,0.000359,4]
[310128207,1704377441759,-151.0,0.00035929,2]
[310128208,1704377441768,-160.587746,0.00035995,2]
[310128209,1704377441777,-2047.92,0.00035999,2]
[310128210,1704377441787,-2047.92,0.00035999,2]
[310128211,1704377441796,-2047.94,0.00035999,2]
[310128212,1704377441806,-1000.0,0.00036,36]
[310128213,1704377441816,-230.03549381,0.00036,4]
[310128214,1704377441826,-254612.09595567,0.00036,4]
[310128215,1704377441835,-11913.38924635,0.00036,2]
[310128216,1704377441844,-500.0,0.00036,7]
[310128217,1704377441854,-221.0,0.00036,2]
[310128218,1704377441865,-221.0,0.00036,2]
[310128219,1704377441875,-253.13732297,0.0003624,2]
[310128220,1704377441885,-13632.10155416,0.00036535,5]
[310128221,1704377441894,-427.7487024,0.00036575,4]
[310128222,1704377441904,-153.0,0.00036795,2]
[310128223,1704377441914,-153.0,0.00036795,2]
[310128224,1704377441924,-246.44628881,0.00036987,2]
[310128225,1704377441934,-1000.0,0.00037,37]
[310128226,1704377441944,-4208.51269797,0.00037,7]
[310128227,1704377441953,-500.0,0.00037,7]
[310128228,1704377441962,-4000.0,0.00037075,2]
[310128229,1704377442020,-216.59298677,0.0003724,2]
[310128230,1704377442030,-295.0,0.000373,7]
[310128231,1704377442039,-1264.23108236,0.000378,12]
[310128232,1704377442049,-484.28114423,0.00037998,4]
[310128233,1704377442059,-2047.94,0.00037999,2]
[310128234,1704377442069,-43944.91217546,0.00038,7]
[310128235,1704377442078,-435.41966528,0.00038,2]
[310128236,1704377442088,-50315.63600745,0.00038,2]
[310128237,1704377442097,-1331.42054821,0.00038,4]
[310128238,1704377442107,-1000.0,0.00038,38]
[310128239,1704377442116,-4779.79120143,0.00038,30]
[310128240,1704377442126,-1485.21853168,0.00038,120]
[310128241,1704377442136,-3310.93188267,0.00038,3]
[310128242,1704377442145,-5428.18095304,0.00038,30]
[310128243,1704377442154,-1237644.85518302,0.00038,10]
[310128244,1704377442170,-107664.56621253,0.00038,10]
[310128246,1704377442668,-683.13879405,0.00022497,2]
[310128247,1704377442678,-3872.01779581,0.00038,10]
[310128284,1704377443276,-235.68021843,0.0002,2]
[310128285,1704377443285,-850.73506203,0.00031687,3]
[310128287,1704377443297,-389.1756126,0.00031687,3]
[310128292,1704378525823,150.84915085,0.00029986,120]
[310128357,1704378632335,-943.0,0.0002492,2]
[310128359,1704378632344,-154.84515485,0.00024927,2]
[310128361,1704378632353,-154.84515485,0.00024927,2]
[310128363,1704378632363,-265.01794046,0.00024928,2]
[310128365,1704378632372,-154.84515485,0.00024928,2]
[310128367,1704378632382,-294.04006646,0.00024928,2]
[310128369,1704378632392,-2090.62355962,0.00024929,2]
[310128371,1704378632401,-154.84515485,0.0002493,2]
[310128373,1704378632413,-451.19088536,0.0002493,2]
[310128375,1704378632422,-154.84515485,0.00024931,4]
[310128377,1704378632431,-1694.64812671,0.00024993,2]
[310128379,1704378632440,-344.36468707,0.00025,2]
[310128381,1704378632449,-2987.87026641,0.00025,2]
[310128383,1704378632459,-679.56551195,0.00025,2]
[310128384,1704378632468,-166.666666,0.00025206,2]
[310128386,1704378632478,-173.795536,0.00025345,2]
[310128388,1704378632487,-629.8191312,0.00025477,2]
[310128390,1704378632496,-12590.7409902,0.00025494,2]
[310128392,1704378632505,-233.6975454,0.00025558,2]
[310128394,1704378632515,-171.3108442,0.00025745,2]
[310128396,1704378632525,-522.83735928,0.00026,2]
[310128398,1704378632534,-620.00255898,0.0002673,2]
[310128400,1704378632544,-162.605991,0.00026941,2]
[310128402,1704378632553,-162.605991,0.00026941,2]
[310128404,1704378632563,-162.605991,0.00026941,2]
[310128406,1704378632572,-173.0,0.00027021,2]
[310128408,1704378632583,-200.0,0.00027491,15]
[310128410,1704378632592,-1321.08258665,0.000279,2]
[310128412,1704378632601,-620.00012795,0.00028066,2]
[310128414,1704378632611,-166.666666,0.00028642,2]
[310128416,1704378632620,-154.89156971,0.00028898,2]
[310128418,1704378632629,-242.84928095,0.00028898,2]
[310128420,1704378632638,-150.0,0.00029,2]
[310128422,1704378632648,-782.10923875,0.00029164,2]
[310128423,1704378632658,-3102.86235415,0.00029164,2]
[310128425,1704378632667,-1010.15566707,0.00029165,2]
[310128427,1704378632677,-1021.26550838,0.00029165,2]
[310128428,1704378632686,-620.0000064,0.0002947,2]
[310128430,1704378632695,-21935.21168305,0.000295,30]
[310128432,1704378632705,-496.1966346,0.000298,5]
[310128434,1704378632718,-3404.43339643,0.00029976,3]
[310128458,1704378638583,-1011.31837321,0.00024919,2]
[310128459,1704378638593,-3569.91660357,0.00029976,3]
[310128460,1704378638602,-154.84515485,0.00029986,2]
[310128461,1704378638612,-2076.65490248,0.00029986,2]
[310128462,1704378638621,-546.11096109,0.00029986,2]
[310128463,1704378638630,-9957.77438844,0.00029986,2]
[310128464,1704378638639,-762.54664786,0.00029986,2]
[310128465,1704378638649,-3125.50457669,0.00029986,2]
[310128466,1704378638658,-1819.50931487,0.00029986,2]
[310128467,1704378638668,-154.84515485,0.00029986,4]
[310128468,1704378638677,-154.84515485,0.00029986,2]
[310128469,1704378638686,-569.32873005,0.00029998,2]
[310128470,1704378638695,-155.18285666,0.00029998,2]
[310128471,1704378638704,-154.8915759,0.00029998,2]
[310128472,1704378638714,-231.10405101,0.00029998,2]
[310128473,1704378638723,-155.47684924,0.00029998,2]
[310128474,1704378638732,-170.63772567,0.0003,2]
[310128475,1704378638741,-163.23455151,0.0003,4]
[310128476,1704378638751,-1500.0,0.0003,2]
[310128477,1704378638760,-537.466684,0.0003,3]
[310128478,1704378638769,-221.0,0.0003,2]
[310128479,1704378638778,-638.6179028,0.0003,4]
[310128480,1704378638848,-243.37606438,0.00030019,4]
[310128481,1704378638858,-685.53559507,0.0003002,4]
[310128482,1704378638867,-7027.47135002,0.00030102,4]
[310128483,1704378638876,-6536.43197787,0.00030102,4]
[310128484,1704378638885,-12203.38142743,0.00030103,5]
[310128485,1704378638894,-5811.96,0.00030127,3]
[310128486,1704378638903,-240.82848987,0.00030136,2]
[310128487,1704378638914,-500.0,0.00030136,2]
[310128488,1704378638924,-197.39987388,0.00030136,2]
[310128489,1704378638933,-48562.3766176,0.00030137,2]
[310128490,1704378638943,-200.0,0.000302,4]
[310128491,1704378638952,-280.0,0.0003024,15]
[310128492,1704378638962,-156.72774072,0.0003054,2]
[310128493,1704378638971,-150.84915085,0.00030598,30]
[310128494,1704378638980,-285.23441444,0.00030637,4]
[310128495,1704378638990,-154.84515485,0.00030637,4]
[310128496,1704378638999,-500.0,0.0003064,2]
[310128497,1704378639008,-500.0,0.0003064,2]
[310128498,1704378639019,-500.0,0.0003064,2]
[310128499,1704378639028,-500.0,0.0003064,2]
[310128500,1704378639037,-589.45817522,0.0003064,2]
[310128501,1704378639046,-150.53704975,0.00030999,2]
[310128502,1704378639056,-2070.68,0.00030999,2]
[310128503,1704378639065,-2070.68,0.00030999,2]
[310128504,1704378639074,-2070.68,0.00030999,2]
[310128505,1704378639083,-2070.68,0.00030999,2]
[310128506,1704378639092,-2070.68,0.00030999,2]
[310128507,1704378639102,-403.3924939,0.00030999,4]
[310128508,1704378639111,-500.0,0.00030999,4]
[310128509,1704378639120,-500.0,0.00030999,4]
[310128510,1704378639129,-630.55990396,0.00030999,4]
[310128511,1704378639139,-420.16721222,0.00030999,4]
[310128512,1704378639148,-597.09806829,0.00030999,4]
[310128513,1704378639158,-500.0,0.00030999,4]
[310128514,1704378639167,-148325.84860296,0.00031,4]
[310128515,1704378639176,-150.84915085,0.00031223,7]
[310128516,1704378639186,-1955.3613254,0.00031368,4]
[310128517,1704378639195,-163.27238737,0.000315,3]
[310128518,1704378639204,-242.01122945,0.00031683,4]
[310128519,1704378639213,-155.39433661,0.00031684,30]
[310128520,1704378639222,-240.00087649,0.00031685,2]
[310128521,1704378639231,-940.80956322,0.00031685,4]
[310128522,1704378639241,-1466.38672048,0.00031685,4]
[310128523,1704378639250,-1448.96135807,0.00031685,4]
[310128524,1704378639259,-230.06186693,0.00031685,4]
[310128525,1704378639270,-6122.12040145,0.00031685,4]
[310128526,1704378639284,-237.89789462,0.00031685,4]
[310128527,1704378639305,-2198.98280898,0.00031685,4]
[310128528,1704378639321,-553.25941224,0.00031685,4]
[310128529,1704378639340,-155.37462333,0.00031685,4]
[310128530,1704378639357,-295.06339553,0.00031685,4]
[310128531,1704378639375,-253.17313502,0.00031685,4]
[310128532,1704378639390,-254.91008809,0.00031685,2]
[310128533,1704378639407,-383.32525908,0.00031685,4]
[310128534,1704378639423,-215.50721126,0.00031685,4]
[310128535,1704378639438,-590.516407,0.00031685,4]
[310128536,1704378639455,-154.84515485,0.00031685,2]
[310128537,1704378639470,-399.38718748,0.00031685,4]
[310128538,1704378639485,-331.69639755,0.00031685,4]
[310128539,1704378639499,-1678.44623893,0.00031685,2]
[310128540,1704378639519,-155.73414115,0.00031685,4]
[310128541,1704378639535,-242.17543569,0.00031685,4]
[310128542,1704378639546,-243.37965784,0.00031685,20]
[310128543,1704378639562,-1640.70662645,0.00031685,4]
[310128544,1704378639576,-212.74233886,0.00031686,4]
[310128545,1704378639590,-1288.64984107,0.00031686,4]
[310128546,1704378639602,-1051.21541603,0.00031686,7]
[310128547,1704378639616,-155.19848072,0.00031686,4]
[310128548,1704378639631,-217.1850821,0.00031686,4]
[310128549,1704378639643,-1083.92340511,0.00031686,4]
[310128550,1704378639658,-158.7035572,0.00031686,4]
[310128551,1704378639671,-282.15862485,0.00031687,3]
[310128552,1704378639685,-2943.74857591,0.00031687,4]
[310128553,1704378639698,-193.66420536,0.00031687,2]
[310128554,1704378639714,-67120.84909923,0.00031687,14]
[310128555,1704378639729,-178.83619526,0.00031687,4]
[310128556,1704378639744,-200.343385,0.00031687,4]
[310128557,1704378639759,-208.00480446,0.00031687,2]
[310128558,1704378639773,-1200.0,0.00031687,4]
[310128559,1704378639787,-333.06538241,0.00031687,4]
[310128560,1704378639801,-159.01242882,0.00031687,2]
[310128562,1704378639817,-150.84915085,0.0003186,4]
[310128564,1704378639832,-1660.10396659,0.00032,2]
[310128565,1704378639846,-150.84915085,0.0003251,2]
[310128566,1704378639860,-523.04990541,0.00032876,7]
[310128567,1704378639874,-156.11871334,0.00033,4]
[310128568,1704378639909,-221.0,0.00033,2]
[310128569,1704378639932,-221.0,0.00033,2]
[310128570,1704378639950,-391.0,0.00033264,15]
[310128571,1704378639967,-1000.0,0.00034,7]
[310128572,1704378639982,-680.1564,0.00034,4]
[310128573,1704378639992,-500.0,0.00034,7]
[310128574,1704378640104,-2106.36713742,0.00034196,4]
[310128575,1704378640117,-160.587746,0.00034281,2]
[310128576,1704378640128,-6315.71861514,0.000345,2]
[310128577,1704378640137,-4000.0,0.00034521,2]
[310128578,1704378640147,-154.84515485,0.00035,4]
[310128579,1704378640159,-590.45108746,0.00035,2]
[310128580,1704378640169,-1454.89912219,0.00035,14]
[310128581,1704378640178,-4278.82706661,0.00035,4]
[310128582,1704378640188,-3539.86097792,0.00035,2]
[310128583,1704378640197,-11137.13456976,0.00035,4]
[310128584,1704378640207,-249.34656463,0.00035,2]
[310128585,1704378640216,-332.07950254,0.00035,4]
[310128586,1704378640225,-154.84515485,0.00035,6]
[310128587,1704378640235,-500.0,0.00035,7]
[310128588,1704378640245,-1033.0,0.00035452,2]
[310128589,1704378640254,-151.0,0.00035478,2]
[310128590,1704378640263,-46992.09509703,0.000355,14]
[310128591,1704378640272,-876.075417,0.00035616,120]
[310128592,1704378640282,-242.03549634,0.00035797,7]
[310128593,1704378640291,-378.33594238,0.00035797,7]
[310128594,1704378640302,-500.0,0.00035797,7]
[310128595,1704378640311,-500.0,0.00035797,7]
[310128596,1704378640322,-190.12540917,0.00035797,7]
[310128597,1704378640331,-500.0,0.00035797,7]
[310128598,1704378640340,-197.82355122,0.00035797,7]
[310128599,1704378640350,-457.87039372,0.00035798,3]
[310128600,1704378640359,-4000.0,0.00035798,2]
[310128601,1704378640368,-232.59961994,0.000359,4]
[310128602,1704378640377,-1068.14939978,0.000359,2]
[310128603,1704378640387,-160.587746,0.00035995,2]
[310128604,1704378640396,-154.90703104,0.00035996,2]
[310128605,1704378640406,-2704.45519417,0.00035996,4]
[310128606,1704378640416,-2067.23046819,0.00035996,4]
[310128607,1704378640426,-2097.15281013,0.00035996,4]
[310128608,1704378640435,-2031.60443603,0.00035996,4]
[310128609,1704378640446,-15856.05933973,0.00035997,4]
[310128610,1704378640456,-230.03549381,0.00036,4]
[310128611,1704378640467,-500.0,0.00036,7]
[310128613,1704378640476,-170.0,0.00036,2]
[310128614,1704378640485,-221.0,0.00036,2]
[310128615,1704378640494,-221.0,0.00036,2]
[310128616,1704378640505,-150.84915085,0.00036122,2]
[310128617,1704378640514,-250.24063936,0.00036122,2]
[310128618,1704378640523,-427.7487024,0.00036575,4]
[310128620,1704378640533,-200.0,0.00036591,15]
[310128622,1704378640542,-348.0,0.00036591,15]
[310128624,1704378640552,-301.6983017,0.00036729,4]
[310128626,1704378640561,-13632.10155416,0.00036943,5]
[310128627,1704378640570,-4208.51269797,0.00037,7]
[310128628,1704378640579,-500.0,0.00037,7]
[310128629,1704378640589,-155.0,0.00037,2]
[310128630,1704378640598,-4000.0,0.00037075,2]
[310128631,1704378640607,-603.3966034,0.00037347,7]
[310128633,1704378640617,-295.0,0.000378,7]
[310128635,1704378640626,-1264.23108236,0.000378,12]
[310128637,1704378640636,-1843.13,0.00037899,2]
[310128638,1704378640645,-2070.68,0.00037899,2]
[310128639,1704378640655,-2070.68,0.00037899,2]
[310128640,1704378640670,-2070.68,0.00037899,2]
[310128641,1704378640691,-2070.68,0.00037899,2]
[310128642,1704378640701,-99289.85268188,0.000379,2]
[310128643,1704378640716,-79485.27308865,0.000379,2]
[310128644,1704378640725,-229.50322,0.000379,2]
[310128645,1704378640735,-229.50322,0.000379,2]
[310128646,1704378640744,-151.50827296,0.00037924,2]
[310128647,1704378640754,-166.82709291,0.00037974,4]
[310128648,1704378640763,-318.60863626,0.00037998,4]
[310128649,1704378640773,-689.62202558,0.00037998,4]
[310128651,1704378640783,-197.67966796,0.00037998,4]
[310128653,1704378640792,-286.8622402,0.00037998,2]
[310128655,1704378640802,-155.16060087,0.00037998,4]
[310128657,1704378640812,-291.57730732,0.00037998,4]
[310128658,1704378640822,-157.86918355,0.00037998,4]
[310128659,1704378640831,-155.04953248,0.00037998,2]
[310128661,1704378640841,-366.94747299,0.00037998,4]
[310128663,1704378640850,-154.9380186,0.00037998,4]
[310128665,1704378640860,-155.19581211,0.00037998,4]
[310128666,1704378640870,-369.79772262,0.00037998,4]
[310128668,1704378640879,-1573.77393442,0.00037998,4]
[310128670,1704378640890,-212.61910187,0.00037998,4]
[310128671,1704378640899,-155.13281341,0.00037998,4]
[310128673,1704378640909,-154.92253873,0.00037998,4]
[310128675,1704378640919,-270.96698371,0.00037998,4]
[310128676,1704378640928,-297.0513033,0.00037998,4]
[310128677,1704378640938,-2802.52127845,0.00037998,4]
[310128679,1704378640947,-511.49884029,0.00037998,2]
[310128680,1704378640957,-374.55931972,0.00037998,4]
[310128682,1704378640966,-585.84654737,0.00037998,4]
[310128684,1704378640975,-164.65816911,0.00037998,4]
[310128685,1704378640984,-160.93191398,0.00037998,4]
[310128686,1704378640994,-243.43667698,0.00037998,4]
[310128687,1704378641003,-438.79494176,0.00037998,4]
[310128688,1704378641012,-460.98644681,0.00037999,4]
[310128689,1704378641022,-170.26381379,0.00037999,4]
[310128690,1704378641032,-642609.04171872,0.00038,10]
[310128691,1704378641041,-2130.31060018,0.00038,4]
[310128692,1704378641051,-1485.21853168,0.00038,120]
[310128693,1704378641061,-4779.79120143,0.00038,30]
[310128694,1704378641071,-151.0,0.00038,2]
[310128695,1704378641080,-500.0,0.00038,7]
[310128696,1704378641090,-250.38966,0.00038,2]
[310128697,1704378641099,-250.38966,0.00038,2]
[310128698,1704378641109,-229.50322,0.00038,2]
[310128699,1704378641118,-229.50322,0.00038,2]
[310128700,1704378641128,-500.0,0.00038,2]
[310128701,1704378641137,-500.0,0.00038,2]
[310128702,1704378641146,-500.0,0.00038,2]
[310128703,1704378641156,-500.0,0.00038,2]
[310128704,1704378641166,-500.0,0.00038,2]
[310128705,1704378641176,-1206.79320679,0.00038292,30]
[310128706,1704378641185,-4000.0,0.00038352,2]
[310128707,1704378641195,-151.0,0.00038356,2]
[310128708,1704378641204,-151.0,0.00038356,2]
[310128709,1704378641214,-250.38966,0.00038356,2]
[310128710,1704378641224,-250.38966,0.00038356,2]
[310128711,1704378641233,-250.38966,0.00038356,2]
[310128712,1704378641242,-250.38966,0.00038356,2]
[310128713,1704378641252,-229.50322,0.00038356,2]
[310128714,1704378641261,-229.50322,0.00038356,2]
[310128715,1704378641270,-229.50322,0.00038356,2]
[310128716,1704378641280,-229.50322,0.00038356,2]
[310128717,1704378641289,-229.50322,0.00038356,2]
[310128718,1704378641298,-229.50322,0.00038356,2]
[310128719,1704378641307,-500.0,0.00038356,7]
[310128720,1704378641317,-1606.58123388,0.00038356,7]
[310128721,1704378641326,-500.0,0.00038356,7]
[310128722,1704378641335,-501.82954482,0.00038356,7]
[310128723,1704378641345,-501.49144187,0.00038356,7]
[310128724,1704378641354,-500.0,0.00038356,7]
[310128725,1704378641364,-500.0,0.00038356,7]
[310128726,1704378641373,-500.0,0.00038356,7]
[310128727,1704378641381,-500.0,0.00038356,7]
[310128728,1704378641392,-500.0,0.00038356,7]
[310128729,1704378641402,-614.80055573,0.00038356,7]
[310128730,1704378641414,-500.0,0.00038356,7]
[310128731,1704378641424,-500.0,0.00038356,7]
[310128732,1704378641434,-500.0,0.00038356,7]
[310128733,1704378641443,-500.0,0.00038356,7]
[310128734,1704378641453,-500.0,0.00038356,7]
[310128735,1704378641463,-206.21520142,0.00038356,7]
[310128736,1704378641473,-500.0,0.00038356,7]
[310128737,1704378641482,-522.05328467,0.00038356,7]
[310128738,1704378641555,-500.0,0.00038356,7]
[310128739,1704378641566,-500.0,0.00038356,7]
[310128741,1704378641576,-354.58372337,0.00038356,7]
[310128743,1704378641585,-500.0,0.00038356,7]
[310128745,1704378641595,-773.72,0.00038356,7]
[310128746,1704378641604,-500.0,0.00038356,7]
[310128747,1704378641614,-500.0,0.00038356,7]
[310128748,1704378641623,-505.41670145,0.00038356,7]
[310128749,1704378641632,-639.70225538,0.00038356,7]
[310128751,1704378641642,-500.0,0.00038356,7]
[310128752,1704378641651,-500.0,0.00038356,7]
[310128753,1704378641663,-500.0,0.00038356,7]
[310128754,1704378641672,-500.0,0.00038356,7]
[310128755,1704378641682,-500.0,0.00038356,7]
[310128756,1704378641691,-500.0,0.00038356,30]
[310128757,1704378641700,-501.267943,0.00038356,7]
[310128758,1704378641710,-500.0,0.00038356,7]
[310128759,1704378641721,-500.0,0.00038356,7]
[310128760,1704378641734,-500.0,0.00038356,7]
[310128761,1704378641744,-500.0,0.00038356,7]
[310128762,1704378641753,-500.0,0.00038356,7]
[310128763,1704378641763,-509.8700385,0.00038356,7]
[310128764,1704378641774,-500.0,0.00038356,7]
[310128765,1704378641783,-591.67535969,0.00038356,7]
[310128766,1704378641793,-500.0,0.00038356,7]
[310128767,1704378641803,-556.35757852,0.00038356,7]
[310128768,1704378641814,-152.91496478,0.00038356,7]
[310128769,1704378641824,-501.63312494,0.00038356,7]
[310128770,1704378641834,-500.0,0.00038356,7]
[310128771,1704378641844,-510.54073913,0.00038356,7]
[310128772,1704378641853,-518.35424623,0.00038356,7]
[310128773,1704378641863,-500.0,0.00038356,7]
[310128774,1704378641873,-500.0,0.00038356,7]
[310128775,1704378641882,-501.39695178,0.00038356,7]
[310128776,1704378641892,-500.0,0.00038356,7]
[310128777,1704378641903,-502.22444369,0.00038356,7]
[310128778,1704378641913,-500.0,0.00038356,7]
[310128779,1704378641923,-504.55068619,0.00038356,7]
[310128780,1704378641934,-933.65,0.00038356,7]
[310128781,1704378641944,-500.0,0.00038356,7]
[310128782,1704378641954,-212.70413848,0.00038356,7]
[310128783,1704378641964,-574.49310266,0.00038356,7]
[310128784,1704378641973,-500.0,0.00038356,7]
[310128785,1704378641982,-195.01096965,0.00038356,7]
[310128786,1704378641992,-500.0,0.00038356,7]
[310128787,1704378642001,-500.0,0.00038356,7]
[310128788,1704378642011,-202.16377138,0.00038356,7]
[310128789,1704378642020,-436.5382808,0.00038356,7]
[310128790,1704378642030,-500.0,0.00038356,7]
[310128791,1704378642039,-500.0,0.00038356,7]
[310128792,1704378642048,-561.31950431,0.00038356,7]
[310128793,1704378642058,-500.0,0.00038356,7]
[310128794,1704378642067,-200.31220345,0.00038356,7]
[310128795,1704378642077,-500.0,0.00038356,7]
[310128796,1704378642088,-500.0,0.00038356,7]
[310128797,1704378642097,-726.47,0.00038356,7]
[310128798,1704378642107,-500.0,0.00038356,7]
[310128799,1704378642116,-921.88,0.00038356,7]
[310128800,1704378642126,-500.0,0.00038356,7]
[310128801,1704378642135,-500.0,0.00038356,7]
[310128802,1704378642144,-500.0,0.00038356,7]
[310128803,1704378642153,-363.39893063,0.00038356,7]
[310128804,1704378642164,-500.0,0.00038356,7]
[310128805,1704378642173,-500.0,0.00038356,7]